[Event "Late-Titled-Tuesday-Blitz-April-16-2024"]
[Site "Chess.com"]
[Date "2024.04.16"]
[Round "5"]
[White "Polish_fighter3000"]
[Black "MeisterJabo"]
[Result "0-1"]
[WhiteElo "3104"]
[BlackElo "2530"]
[TimeControl "180+1"]
[EndTime "14:52:52 PDT"]
[Termination "MeisterJabo won on time"]

1. g3 {[%clk 0:03:00.9]} 1... c5 {[%clk 0:02:56]} 2. Bg2 {[%clk 0:02:56.5]} 2...
g6 {[%clk 0:02:52.1]} 3. c4 {[%clk 0:02:49.2]} 3... Nc6 {[%clk 0:02:51.8]} 4.
Nf3 {[%clk 0:02:42.9]} 4... Bg7 {[%clk 0:02:51.4]} 5. O-O {[%clk 0:02:43.4]}
5... a6 {[%clk 0:02:48.8]} 6. Nc3 {[%clk 0:02:38.5]} 6... Rb8 {[%clk 0:02:48.5]}
7. d3 {[%clk 0:01:27.4]} 7... b5 {[%clk 0:02:45.4]} 8. Bf4 {[%clk 0:01:24.1]}
8... d6 {[%clk 0:02:25.1]} 9. Qd2 {[%clk 0:01:24.3]} 9... b4 {[%clk 0:02:15.7]}
10. Ne4 {[%clk 0:00:41.2]} 10... Bb7 {[%clk 0:01:32.3]} 11. a3 {[%clk
0:00:23.8]} 11... f5 {[%clk 0:01:24.4]} 12. Neg5 {[%clk 0:00:19.6]} 12... Qd7
{[%clk 0:01:24]} 13. axb4 {[%clk 0:00:19.5]} 13... Nxb4 {[%clk 0:01:21.9]} 14.
h4 {[%clk 0:00:03.8]} 14... h6 {[%clk 0:01:21.8]} 15. Nh3 {[%clk 0:00:03.9]}
15... Nf6 {[%clk 0:01:21.9]} 16. Nh2 {[%clk 0:00:02.6]} 16... Ng4 {[%clk
0:01:13.2]} 17. Bxb7 {[%clk 0:00:01.7]} 17... Qxb7 {[%clk 0:01:13.7]} 18. Ra3
{[%clk 0:00:01.7]} 18... e5 {[%clk 0:01:06.7]} 19. Be3 {[%clk 0:00:01.5]} 19...
Nxe3 {[%clk 0:01:04.5]} 20. fxe3 {[%clk 0:00:01.6]} 20... O-O {[%clk 0:01:05.4]}
21. Rf2 {[%clk 0:00:01.7]} 21... Nc6 {[%clk 0:01:02.7]} 22. Nf1 {[%clk
0:00:01.9]} 22... a5 {[%clk 0:00:55.6]} 23. b3 {[%clk 0:00:02.1]} 23... Ra8
{[%clk 0:00:30.4]} 24. Rh2 {[%clk 0:00:02]} 24... Qb4 {[%clk 0:00:29]} 25. Qa2
{[%clk 0:00:01.2]} 25... Ra6 {[%clk 0:00:25.1]} 26. Ra4 {[%clk 0:00:01.5]} 26...
Qb6 {[%clk 0:00:24.7]} 27. Ra3 {[%clk 0:00:01.3]} 27... Rfa8 {[%clk 0:00:24.8]}
28. Nf2 {[%clk 0:00:01.4]} 28... Qb4 {[%clk 0:00:24.1]} 29. h5 {[%clk
0:00:01.1]} 29... g5 {[%clk 0:00:23.7]} 30. g4 {[%clk 0:00:01.5]} 30... a4
{[%clk 0:00:19.6]} 0-1

[Event "Late-Titled-Tuesday-Blitz-April-16-2024"]
[Site "Chess.com"]
[Date "2024.04.16"]
[Round "5"]
[White "rdarruda"]
[Black "GianmarcoVaR"]
[Result "1-0"]
[WhiteElo "2554"]
[BlackElo "2730"]
[TimeControl "180+1"]
[EndTime "14:52:53 PDT"]
[Termination "rdarruda won by checkmate"]

1. Nf3 {[%clk 0:02:52]} 1... Nf6 {[%clk 0:02:53]} 2. d4 {[%clk 0:02:51.5]} 2...
g6 {[%clk 0:02:52]} 3. Nc3 {[%clk 0:02:51.3]} 3... d6 {[%clk 0:02:46.5]} 4. e4
{[%clk 0:02:50.5]} 4... c6 {[%clk 0:02:47.4]} 5. Bg5 {[%clk 0:02:50.2]} 5... Bg7
{[%clk 0:02:45.5]} 6. Qd2 {[%clk 0:02:50.2]} 6... h6 {[%clk 0:02:43.8]} 7. Bh4
{[%clk 0:02:48.9]} 7... g5 {[%clk 0:02:43.2]} 8. Bg3 {[%clk 0:02:48.5]} 8... Nh5
{[%clk 0:02:43.5]} 9. O-O-O {[%clk 0:02:47.7]} 9... b5 {[%clk 0:02:42.1]} 10. a3
{[%clk 0:02:44]} 10... Nd7 {[%clk 0:02:40.5]} 11. e5 {[%clk 0:02:40.9]} 11... d5
{[%clk 0:02:34.1]} 12. e6 {[%clk 0:02:31.8]} 12... fxe6 {[%clk 0:02:34.3]} 13.
Bd3 {[%clk 0:02:32.2]} 13... O-O {[%clk 0:02:13.8]} 14. Rde1 {[%clk 0:02:17.2]}
14... a5 {[%clk 0:01:10.9]} 15. h4 {[%clk 0:01:47.9]} 15... Nxg3 {[%clk
0:01:08]} 16. fxg3 {[%clk 0:01:47.2]} 16... g4 {[%clk 0:01:08.6]} 17. Ne5 {[%clk
0:01:46.3]} 17... Nxe5 {[%clk 0:01:06.2]} 18. dxe5 {[%clk 0:01:47.2]} 18... b4
{[%clk 0:00:57.7]} 19. Ne2 {[%clk 0:01:46.1]} 19... bxa3 {[%clk 0:00:58.1]} 20.
bxa3 {[%clk 0:01:46.5]} 20... Rb8 {[%clk 0:00:46.6]} 21. Nf4 {[%clk 0:01:45]}
21... Qb6 {[%clk 0:00:45.9]} 22. c3 {[%clk 0:01:32.7]} 22... Qa6 {[%clk
0:00:42.4]} 23. Bxa6 {[%clk 0:01:30.8]} 23... Bxa6 {[%clk 0:00:41]} 24. Nh5
{[%clk 0:01:28.8]} 24... Rb3 {[%clk 0:00:33.7]} 25. Nxg7 {[%clk 0:01:28.1]}
25... Rfb8 {[%clk 0:00:34.4]} 26. Qxh6 {[%clk 0:01:19.9]} 26... d4 {[%clk
0:00:16.6]} 27. cxd4 {[%clk 0:00:39.2]} 27... Rb1+ {[%clk 0:00:02.2]} 28. Kd2
{[%clk 0:00:37.6]} 28... R1b2+ {[%clk 0:00:02]} 29. Ke3 {[%clk 0:00:36.9]} 29...
Rf8 {[%clk 0:00:01.5]} 30. Nxe6 {[%clk 0:00:18.2]} 30... Rb3+ {[%clk 0:00:02.2]}
31. Kd2 {[%clk 0:00:18.3]} 31... Rf2+ {[%clk 0:00:02.9]} 32. Kc1 {[%clk
0:00:18.7]} 32... Bd3 {[%clk 0:00:03]} 33. Qg7# {[%clk 0:00:17.9]} 1-0

[Event "Late-Titled-Tuesday-Blitz-April-16-2024"]
[Site "Chess.com"]
[Date "2024.04.16"]
[Round "5"]
[White "DirtyKabab"]
[Black "Hirna2005"]
[Result "1-0"]
[WhiteElo "2538"]
[BlackElo "2343"]
[TimeControl "180+1"]
[EndTime "14:52:53 PDT"]
[Termination "DirtyKabab won by resignation"]

1. e4 {[%clk 0:02:56.4]} 1... g6 {[%clk 0:03:00.2]} 2. d4 {[%clk 0:02:53.6]}
2... Bg7 {[%clk 0:03:00.4]} 3. Nf3 {[%clk 0:02:48.3]} 3... d6 {[%clk 0:03:00.8]}
4. Bc4 {[%clk 0:02:47.7]} 4... Nf6 {[%clk 0:03:00.5]} 5. Qe2 {[%clk 0:02:48.3]}
5... O-O {[%clk 0:03:00.3]} 6. e5 {[%clk 0:02:48.4]} 6... dxe5 {[%clk
0:03:00.3]} 7. dxe5 {[%clk 0:02:48.2]} 7... Nd5 {[%clk 0:03:00.9]} 8. O-O {[%clk
0:02:47.8]} 8... c6 {[%clk 0:03:01.2]} 9. Nbd2 {[%clk 0:02:46.6]} 9... Be6
{[%clk 0:02:57.9]} 10. Ne4 {[%clk 0:02:37.5]} 10... Nd7 {[%clk 0:02:54.3]} 11.
h3 {[%clk 0:02:32.9]} 11... Qc7 {[%clk 0:02:47.3]} 12. Neg5 {[%clk 0:02:30.9]}
12... Nxe5 {[%clk 0:02:42.4]} 13. Nxe5 {[%clk 0:02:25.1]} 13... Qxe5 {[%clk
0:02:33.6]} 14. Qxe5 {[%clk 0:02:21.6]} 14... Bxe5 {[%clk 0:02:33.7]} 15. Nxe6
{[%clk 0:02:22.3]} 15... fxe6 {[%clk 0:02:33.5]} 16. Re1 {[%clk 0:02:19.1]}
16... Bf6 {[%clk 0:02:18]} 17. Rxe6 {[%clk 0:02:12.3]} 17... Rad8 {[%clk
0:02:11]} 18. Bh6 {[%clk 0:02:09.7]} 18... Kf7 {[%clk 0:01:58.9]} 19. Rae1
{[%clk 0:01:58.3]} 19... Rfe8 {[%clk 0:01:56]} 20. c3 {[%clk 0:01:55.9]} 20...
Rd6 {[%clk 0:01:45.3]} 21. Rxd6 {[%clk 0:01:51.4]} 21... exd6 {[%clk 0:01:45.1]}
22. Rxe8 {[%clk 0:01:43.1]} 22... Kxe8 {[%clk 0:01:46]} 23. Bxd5 {[%clk
0:01:42.6]} 23... cxd5 {[%clk 0:01:46.3]} 24. Be3 {[%clk 0:01:43.3]} 24... b6
{[%clk 0:01:45.6]} 25. Kf1 {[%clk 0:01:39.3]} 25... Kd7 {[%clk 0:01:45.8]} 26.
Ke2 {[%clk 0:01:39.4]} 26... Ke6 {[%clk 0:01:40.9]} 27. Kd3 {[%clk 0:01:39.9]}
27... Be5 {[%clk 0:01:39.1]} 28. f4 {[%clk 0:01:34.5]} 28... Bf6 {[%clk
0:01:37.4]} 29. g4 {[%clk 0:01:34.4]} 29... Bh4 {[%clk 0:01:34.6]} 30. a4 {[%clk
0:01:29]} 30... h5 {[%clk 0:01:30.8]} 31. a5 {[%clk 0:01:11.9]} 31... hxg4
{[%clk 0:01:22.7]} 32. hxg4 {[%clk 0:01:11.2]} 32... Bd8 {[%clk 0:01:19.9]} 33.
a6 {[%clk 0:01:07.2]} 33... Bc7 {[%clk 0:01:12.7]} 34. b4 {[%clk 0:01:03.5]}
34... Bd8 {[%clk 0:01:12]} 35. b5 {[%clk 0:01:01.1]} 35... Kd7 {[%clk 0:00:53]}
36. Kd4 {[%clk 0:00:47.1]} 36... Bf6+ {[%clk 0:00:52.6]} 37. Kxd5 {[%clk
0:00:47.5]} 37... Bxc3 {[%clk 0:00:52.7]} 38. Bxb6 {[%clk 0:00:47.7]} 38... Bd2
{[%clk 0:00:43.7]} 39. f5 {[%clk 0:00:45]} 39... gxf5 {[%clk 0:00:43.3]} 40.
gxf5 {[%clk 0:00:45.9]} 40... Kc8 {[%clk 0:00:32.6]} 41. Bxa7 {[%clk 0:00:45.3]}
41... Bg5 {[%clk 0:00:31]} 42. Bd4 {[%clk 0:00:44.7]} 42... Be7 {[%clk
0:00:29.2]} 43. b6 {[%clk 0:00:43.8]} 43... Kb8 {[%clk 0:00:29.5]} 44. f6 {[%clk
0:00:43.5]} 44... Bf8 {[%clk 0:00:28.9]} 45. Kc6 {[%clk 0:00:43.1]} 45... d5
{[%clk 0:00:25.5]} 46. Be5+ {[%clk 0:00:42.5]} 46... Ka8 {[%clk 0:00:25.4]} 47.
b7+ {[%clk 0:00:42.5]} 47... Ka7 {[%clk 0:00:25.6]} 48. b8=Q+ {[%clk 0:00:42.7]}
1-0

[Event "Late-Titled-Tuesday-Blitz-April-16-2024"]
[Site "Chess.com"]
[Date "2024.04.16"]
[Round "5"]
[White "Franmu14"]
[Black "jaskol95"]
[Result "0-1"]
[WhiteElo "2713"]
[BlackElo "2549"]
[TimeControl "180+1"]
[EndTime "14:52:54 PDT"]
[Termination "jaskol95 won by checkmate"]

1. e4 {[%clk 0:03:00.9]} 1... e6 {[%clk 0:02:59.8]} 2. d4 {[%clk 0:03:00.3]}
2... d5 {[%clk 0:03:00.5]} 3. exd5 {[%clk 0:03:01.1]} 3... exd5 {[%clk 0:03:01]}
4. Nc3 {[%clk 0:03:01.8]} 4... c5 {[%clk 0:03:00.6]} 5. Nf3 {[%clk 0:02:58.9]}
5... Nf6 {[%clk 0:03:00.8]} 6. Bg5 {[%clk 0:02:58.4]} 6... Be6 {[%clk
0:02:57.5]} 7. Qd3 {[%clk 0:02:54.7]} 7... Nc6 {[%clk 0:02:57.7]} 8. O-O-O
{[%clk 0:02:53.8]} 8... c4 {[%clk 0:02:57.5]} 9. Qe3 {[%clk 0:02:52.5]} 9... Be7
{[%clk 0:02:58]} 10. h4 {[%clk 0:02:49.4]} 10... Ng4 {[%clk 0:02:45.8]} 11. Qe1
{[%clk 0:02:42.9]} 11... h6 {[%clk 0:02:39.3]} 12. Bf4 {[%clk 0:02:30.1]} 12...
Bb4 {[%clk 0:02:35.3]} 13. Ne5 {[%clk 0:02:27.2]} 13... Bxc3 {[%clk 0:02:26.8]}
14. bxc3 {[%clk 0:01:52.2]} 14... Ngxe5 {[%clk 0:02:21.8]} 15. Bxe5 {[%clk
0:01:50.6]} 15... Nxe5 {[%clk 0:02:19.6]} 16. Qxe5 {[%clk 0:01:51.5]} 16... O-O
{[%clk 0:02:19.7]} 17. g4 {[%clk 0:01:45]} 17... Qa5 {[%clk 0:02:15.6]} 18. Kd2
{[%clk 0:01:38.5]} 18... Rfe8 {[%clk 0:02:12.8]} 19. Qf4 {[%clk 0:01:36.9]}
19... b5 {[%clk 0:02:05]} 20. Rb1 {[%clk 0:01:31.5]} 20... Rab8 {[%clk
0:01:56.2]} 21. Qd6 {[%clk 0:00:37.3]} 21... Rb6 {[%clk 0:00:51.9]} 22. Qc5
{[%clk 0:00:26.6]} 22... Bxg4 {[%clk 0:00:45.4]} 23. Rg1 {[%clk 0:00:25.5]}
23... h5 {[%clk 0:00:46.1]} 24. Qxd5 {[%clk 0:00:19.7]} 24... Rbe6 {[%clk
0:00:46.3]} 25. Bxc4 {[%clk 0:00:09.4]} 25... Re2+ {[%clk 0:00:19.6]} 26. Bxe2
{[%clk 0:00:09.2]} 26... Rxe2+ {[%clk 0:00:20.5]} 27. Kd3 {[%clk 0:00:09.7]}
27... Qa4 {[%clk 0:00:20.9]} 28. Qb3 {[%clk 0:00:07.1]} 28... Qa6 {[%clk
0:00:20.4]} 29. Qxb5 {[%clk 0:00:05.3]} 29... Qe6 {[%clk 0:00:19.6]} 30. Qb8+
{[%clk 0:00:02]} 30... Kh7 {[%clk 0:00:19.7]} 31. c4 {[%clk 0:00:02.5]} 31...
Bf5+ {[%clk 0:00:20.1]} 32. Kc3 {[%clk 0:00:03.4]} 32... Rxc2+ {[%clk
0:00:19.5]} 33. Kb3 {[%clk 0:00:03.8]} 33... Qxc4+ {[%clk 0:00:20.3]} 34. Ka3
{[%clk 0:00:04]} 34... Rxa2# {[%clk 0:00:21.2]} 0-1

[Event "Late-Titled-Tuesday-Blitz-April-16-2024"]
[Site "Chess.com"]
[Date "2024.04.16"]
[Round "5"]
[White "Indefatigable11"]
[Black "laziestwin"]
[Result "1-0"]
[WhiteElo "2390"]
[BlackElo "2544"]
[TimeControl "180+1"]
[EndTime "14:52:55 PDT"]
[Termination "Indefatigable11 won by resignation"]

1. d4 {[%clk 0:03:00.9]} 1... d6 {[%clk 0:02:53.3]} 2. c4 {[%clk 0:02:59.8]}
2... Nf6 {[%clk 0:02:52.7]} 3. Nc3 {[%clk 0:02:58.6]} 3... g6 {[%clk 0:02:52.9]}
4. Nf3 {[%clk 0:02:58.3]} 4... Bg7 {[%clk 0:02:53.6]} 5. e4 {[%clk 0:02:58.3]}
5... O-O {[%clk 0:02:54.2]} 6. Be2 {[%clk 0:02:58.3]} 6... e5 {[%clk 0:02:53.9]}
7. O-O {[%clk 0:02:58.5]} 7... Nc6 {[%clk 0:02:53.3]} 8. d5 {[%clk 0:02:58.4]}
8... Ne7 {[%clk 0:02:53.4]} 9. b4 {[%clk 0:02:58.3]} 9... a5 {[%clk 0:02:49.9]}
10. bxa5 {[%clk 0:02:56.9]} 10... Nd7 {[%clk 0:02:49.4]} 11. Na4 {[%clk
0:02:50.5]} 11... Rxa5 {[%clk 0:02:46.3]} 12. Bd2 {[%clk 0:02:49.9]} 12... Ra8
{[%clk 0:02:45.9]} 13. Bb4 {[%clk 0:02:49.1]} 13... b6 {[%clk 0:02:43.5]} 14.
Nc3 {[%clk 0:02:45.5]} 14... h6 {[%clk 0:02:41.6]} 15. a4 {[%clk 0:02:45.1]}
15... f5 {[%clk 0:02:41.5]} 16. Ne1 {[%clk 0:02:44]} 16... Nf6 {[%clk
0:02:32.6]} 17. f3 {[%clk 0:02:41.3]} 17... f4 {[%clk 0:02:32.1]} 18. a5 {[%clk
0:02:39.4]} 18... bxa5 {[%clk 0:02:31.3]} 19. Bxa5 {[%clk 0:02:36.1]} 19... Bd7
{[%clk 0:01:52]} 20. Nd3 {[%clk 0:02:33.3]} 20... g5 {[%clk 0:01:49.1]} 21. c5
{[%clk 0:02:31.8]} 21... Rxa5 {[%clk 0:01:29.4]} 22. Rxa5 {[%clk 0:02:30.4]}
22... g4 {[%clk 0:01:30.1]} 23. fxg4 {[%clk 0:02:18.3]} 23... Ng6 {[%clk
0:01:24.9]} 24. c6 {[%clk 0:02:08]} 24... Bc8 {[%clk 0:01:24.4]} 25. Ra8 {[%clk
0:02:03.3]} 25... Nh7 {[%clk 0:01:14.8]} 26. Bf3 {[%clk 0:02:02]} 26... Ng5
{[%clk 0:01:14.1]} 27. Nb4 {[%clk 0:01:59.5]} 27... Nh4 {[%clk 0:01:13.1]} 28.
Nb5 {[%clk 0:01:54]} 28... Ngxf3+ {[%clk 0:00:41.6]} 29. gxf3 {[%clk 0:01:53.3]}
29... Qg5 {[%clk 0:00:40.3]} 30. Nxc7 {[%clk 0:01:46.3]} 30... h5 {[%clk
0:00:39.6]} 31. h3 {[%clk 0:01:45.8]} 31... hxg4 {[%clk 0:00:39.2]} 32. hxg4
{[%clk 0:01:43.6]} 32... Bxg4 {[%clk 0:00:17.4]} 33. Rxf8+ {[%clk 0:01:42.1]}
33... Bxf8 {[%clk 0:00:18.3]} 34. fxg4 {[%clk 0:01:34.7]} 34... f3 {[%clk
0:00:19.2]} 35. Kf2 {[%clk 0:01:31.6]} 35... Bh6 {[%clk 0:00:13.9]} 36. Qd3
{[%clk 0:01:25.9]} 36... Qf4 {[%clk 0:00:05.1]} 37. Rh1 {[%clk 0:01:07.3]} 37...
Bg5 {[%clk 0:00:05.1]} 38. Ne6 {[%clk 0:01:04.1]} 38... Qxg4 {[%clk 0:00:05.6]}
39. Rg1 {[%clk 0:01:01.9]} 39... Ng2 {[%clk 0:00:03.8]} 40. Nxg5 {[%clk
0:00:59]} 40... Qxg5 {[%clk 0:00:02.3]} 41. Qxf3 {[%clk 0:00:55.7]} 41... Qd2+
{[%clk 0:00:01.4]} 42. Qe2 {[%clk 0:00:52.5]} 42... Qf4+ {[%clk 0:00:02]} 43.
Kxg2 {[%clk 0:00:50.7]} 43... Kh8 {[%clk 0:00:01.5]} 44. Rh1+ {[%clk 0:00:50]}
44... Kg7 {[%clk 0:00:02.1]} 45. Qf2 {[%clk 0:00:47.8]} 45... Qg4+ {[%clk
0:00:02.2]} 46. Qg3 {[%clk 0:00:47.7]} 46... Qxg3+ {[%clk 0:00:02.2]} 47. Kxg3
{[%clk 0:00:47.9]} 1-0

[Event "Late-Titled-Tuesday-Blitz-April-16-2024"]
[Site "Chess.com"]
[Date "2024.04.16"]
[Round "5"]
[White "platy3"]
[Black "Tugrik1969"]
[Result "1-0"]
[WhiteElo "2880"]
[BlackElo "2504"]
[TimeControl "180+1"]
[EndTime "14:52:57 PDT"]
[Termination "platy3 won by resignation"]

1. d4 {[%clk 0:03:00.9]} 1... d5 {[%clk 0:02:59.5]} 2. Nf3 {[%clk 0:02:58.8]}
2... Nf6 {[%clk 0:02:58.5]} 3. c3 {[%clk 0:02:58.6]} 3... g6 {[%clk 0:02:49.3]}
4. Bg5 {[%clk 0:02:51.2]} 4... Bg7 {[%clk 0:02:49]} 5. Nbd2 {[%clk 0:02:51.4]}
5... Nbd7 {[%clk 0:02:44.1]} 6. e3 {[%clk 0:02:49.8]} 6... O-O {[%clk
0:02:43.3]} 7. Bd3 {[%clk 0:02:49.7]} 7... Re8 {[%clk 0:02:38.4]} 8. O-O {[%clk
0:02:47.9]} 8... e5 {[%clk 0:02:38.5]} 9. dxe5 {[%clk 0:02:48.1]} 9... Nxe5
{[%clk 0:02:39.1]} 10. Nxe5 {[%clk 0:02:48.8]} 10... Rxe5 {[%clk 0:02:39.7]} 11.
Bf4 {[%clk 0:02:47.3]} 11... Re8 {[%clk 0:02:38.7]} 12. h3 {[%clk 0:02:47.1]}
12... c6 {[%clk 0:02:38.3]} 13. a4 {[%clk 0:02:45.2]} 13... a5 {[%clk
0:02:36.5]} 14. Qc2 {[%clk 0:02:43.8]} 14... Qb6 {[%clk 0:02:32.1]} 15. Rab1
{[%clk 0:02:40.5]} 15... Nd7 {[%clk 0:02:21.5]} 16. b4 {[%clk 0:02:35.6]} 16...
Ne5 {[%clk 0:02:17]} 17. Bxe5 {[%clk 0:02:32]} 17... Bxe5 {[%clk 0:02:16.4]} 18.
b5 {[%clk 0:02:31.8]} 18... Qc5 {[%clk 0:02:09.3]} 19. c4 {[%clk 0:02:30]} 19...
Be6 {[%clk 0:01:54.1]} 20. Nb3 {[%clk 0:02:25.2]} 20... Qa3 {[%clk 0:01:45.5]}
21. cxd5 {[%clk 0:01:45.5]} 21... cxd5 {[%clk 0:01:34.4]} 22. Nd4 {[%clk
0:01:33.7]} 22... Bxd4 {[%clk 0:01:27.8]} 23. exd4 {[%clk 0:01:34.6]} 23... Rec8
{[%clk 0:01:23.2]} 24. Qb3 {[%clk 0:01:31.5]} 24... Rc3 {[%clk 0:01:18.6]} 25.
Qxa3 {[%clk 0:01:31.1]} 25... Rxa3 {[%clk 0:01:19.5]} 26. Bc2 {[%clk 0:01:28.3]}
26... Rc8 {[%clk 0:01:18.6]} 27. Rb2 {[%clk 0:01:27.7]} 27... b6 {[%clk
0:01:16.8]} 28. Re1 {[%clk 0:01:24.8]} 28... Rac3 {[%clk 0:01:13]} 29. Re2
{[%clk 0:01:23.1]} 29... R8c4 {[%clk 0:01:11.4]} 30. Rd2 {[%clk 0:01:23.4]}
30... Rb4 {[%clk 0:01:08.7]} 31. Rxb4 {[%clk 0:01:16.5]} 31... axb4 {[%clk
0:01:08.1]} 32. Kh2 {[%clk 0:01:17]} 32... b3 {[%clk 0:00:51.9]} 33. Bd1 {[%clk
0:01:17.4]} 33... Rc4 {[%clk 0:00:48.4]} 34. Bxb3 {[%clk 0:01:17.1]} 34... Rb4
{[%clk 0:00:47.8]} 35. Rd3 {[%clk 0:01:10.3]} 35... Kf8 {[%clk 0:00:40.4]} 36.
g4 {[%clk 0:01:10]} 36... Ke7 {[%clk 0:00:39.1]} 37. Kg3 {[%clk 0:01:10.2]}
37... Kd6 {[%clk 0:00:39.5]} 38. Kf4 {[%clk 0:01:10.5]} 38... f6 {[%clk
0:00:39.6]} 39. Ke3 {[%clk 0:01:10.4]} 39... g5 {[%clk 0:00:39.4]} 40. Kd2
{[%clk 0:01:10.7]} 40... h5 {[%clk 0:00:39.6]} 41. f3 {[%clk 0:01:08.3]} 41...
hxg4 {[%clk 0:00:36.5]} 42. hxg4 {[%clk 0:01:09.2]} 42... f5 {[%clk 0:00:35.5]}
43. Kc3 {[%clk 0:01:08.9]} 43... Rxb3+ {[%clk 0:00:34.9]} 44. Kxb3 {[%clk
0:01:09.8]} 44... fxg4 {[%clk 0:00:35.4]} 45. fxg4 {[%clk 0:01:10.5]} 45... Bxg4
{[%clk 0:00:36]} 46. Rg3 {[%clk 0:01:10.3]} 46... Bd1+ {[%clk 0:00:36]} 47. Kb4
{[%clk 0:01:11]} 47... g4 {[%clk 0:00:36.9]} 48. a5 {[%clk 0:01:11.7]} 48...
bxa5+ {[%clk 0:00:36.7]} 49. Kxa5 {[%clk 0:01:12.6]} 49... Kc7 {[%clk
0:00:26.6]} 50. b6+ {[%clk 0:01:12.4]} 50... Kb7 {[%clk 0:00:23.8]} 51. Kb5
{[%clk 0:01:12.9]} 51... Be2+ {[%clk 0:00:23.6]} 52. Kc5 {[%clk 0:01:13.8]}
52... Bf3 {[%clk 0:00:23.9]} 53. Rg1 {[%clk 0:01:11.7]} 53... Kb8 {[%clk
0:00:23.1]} 54. Kc6 {[%clk 0:01:11.4]} 54... Kc8 {[%clk 0:00:22.5]} 55. b7+
{[%clk 0:01:09.4]} 1-0

[Event "Late-Titled-Tuesday-Blitz-April-16-2024"]
[Site "Chess.com"]
[Date "2024.04.16"]
[Round "5"]
[White "h4parah5"]
[Black "Shankland"]
[Result "1-0"]
[WhiteElo "3041"]
[BlackElo "2885"]
[TimeControl "180+1"]
[EndTime "14:53:01 PDT"]
[Termination "h4parah5 won by resignation"]

1. Nf3 {[%clk 0:03:00.9]} 1... d5 {[%clk 0:02:57.6]} 2. e3 {[%clk 0:03:00.8]}
2... Nf6 {[%clk 0:02:57.1]} 3. c4 {[%clk 0:03:01.4]} 3... c6 {[%clk 0:02:57.6]}
4. Qc2 {[%clk 0:03:00.5]} 4... g6 {[%clk 0:02:56.3]} 5. b3 {[%clk 0:03:00.1]}
5... Bg7 {[%clk 0:02:56.5]} 6. Bb2 {[%clk 0:03:00.2]} 6... O-O {[%clk
0:02:56.9]} 7. Be2 {[%clk 0:02:59]} 7... Bf5 {[%clk 0:02:44.2]} 8. d3 {[%clk
0:02:55.9]} 8... Na6 {[%clk 0:02:44.3]} 9. O-O {[%clk 0:02:50.6]} 9... Rc8
{[%clk 0:02:43.1]} 10. Rd1 {[%clk 0:02:46.6]} 10... Qb6 {[%clk 0:02:33.7]} 11.
Nbd2 {[%clk 0:02:33.2]} 11... Rfd8 {[%clk 0:02:29.8]} 12. a3 {[%clk 0:02:28.9]}
12... h6 {[%clk 0:01:58]} 13. h3 {[%clk 0:02:26.8]} 13... g5 {[%clk 0:01:56.8]}
14. Rab1 {[%clk 0:02:16.7]} 14... Bh7 {[%clk 0:01:45.8]} 15. b4 {[%clk
0:02:11.4]} 15... c5 {[%clk 0:01:29.3]} 16. b5 {[%clk 0:01:44.1]} 16... Nc7
{[%clk 0:01:23.2]} 17. a4 {[%clk 0:01:43.7]} 17... Ne6 {[%clk 0:01:19.9]} 18.
cxd5 {[%clk 0:01:39.8]} 18... Rxd5 {[%clk 0:01:16]} 19. Nc4 {[%clk 0:01:38.4]}
19... Qd8 {[%clk 0:01:12.2]} 20. Qb3 {[%clk 0:01:36]} 20... b6 {[%clk
0:01:08.1]} 21. a5 {[%clk 0:01:32.5]} 21... h5 {[%clk 0:00:47.9]} 22. axb6
{[%clk 0:01:29.6]} 22... axb6 {[%clk 0:00:47.6]} 23. Bxf6 {[%clk 0:01:28.1]}
23... Bxf6 {[%clk 0:00:46.5]} 24. Nxb6 {[%clk 0:01:28.2]} 24... c4 {[%clk
0:00:31.2]} 25. Nxc4 {[%clk 0:01:14.7]} 25... Nc5 {[%clk 0:00:30.3]} 26. Qa2
{[%clk 0:01:04.3]} 26... Ra8 {[%clk 0:00:28]} 27. Qc2 {[%clk 0:00:59.8]} 27...
Nxd3 {[%clk 0:00:24.4]} 28. Nb6 {[%clk 0:00:39.6]} 28... Nf4 {[%clk 0:00:18.4]}
29. Nxd5 {[%clk 0:00:28.8]} 29... Bxc2 {[%clk 0:00:16.3]} 30. Nxf6+ {[%clk
0:00:28.5]} 30... Kg7 {[%clk 0:00:16.4]} 31. Rxd8 {[%clk 0:00:28.1]} 31... Nxe2+
{[%clk 0:00:16.5]} 32. Kf1 {[%clk 0:00:26.8]} 32... Rxd8 {[%clk 0:00:17.1]} 33.
Nxh5+ {[%clk 0:00:21.4]} 33... Kh6 {[%clk 0:00:16.5]} 34. Rb2 {[%clk 0:00:19.5]}
34... Bd3 {[%clk 0:00:15.8]} 35. Ne5 {[%clk 0:00:19]} 35... Nc3+ {[%clk
0:00:13.1]} 36. Ke1 {[%clk 0:00:18.6]} 36... Kxh5 {[%clk 0:00:12.7]} 37. Rd2
{[%clk 0:00:18.3]} 37... f6 {[%clk 0:00:12.2]} 38. Nxd3 {[%clk 0:00:17.1]} 38...
Nxb5 {[%clk 0:00:11.7]} 39. Nf4+ {[%clk 0:00:17.1]} 1-0